bitfinex-derivatives/quotes_ETHF0:USTF0_20250213
["timestamp","ask_amount","ask_price","bid_price","bid_amount"]
[1739442669368,0.74501,2684.2,2684.1,0.74501]
[1739442669568,0.74501,2684.2,2684.0,3.79309217]
[1739442669569,1.86229,2684.5,2684.0,3.79309217]
[1739442669770,1.86241,2684.3,2683.5,1.624]
[1739442669972,5.07034,2684.1,2683.6,0.55]
[1739442670275,0.74513,2683.8,2683.7,0.74512]
[1739442670661,0.74513,2683.7,2683.6,1.29514]
[1739442671363,0.74513,2683.8,2683.7,0.74511]
[1739442671769,0.74513,2683.7,2683.6,0.55]
[1739442672265,0.74513,2683.7,2683.6,1.29515]
[1739442672461,0.74511,2683.8,2683.6,0.55]
[1739442672664,0.74513,2683.7,2683.6,1.29513]
[1739442673671,1.8627,2683.9,2683.4,2.62059217]
[1739442673970,0.5663,2683.6,2683.4,2.62059217]
[1739442674168,0.5663,2683.6,2683.5,0.74518]
[1739442674363,1.31145,2683.6,2683.5,0.74518]
[1739442675067,0.5663,2683.6,2683.5,0.74518]
[1739442675374,1.31145,2683.6,2683.5,0.74518]
[1739442675669,0.9723456,2684.0,2683.5,1.86296]
[1739442675870,0.9723456,2684.0,2683.5,2.40516]
[1739442676072,0.7451,2683.9,2683.8,0.74508]
[1739442676673,0.74511,2683.8,2683.7,0.7451]
[1739442678064,0.5449,2684.0,2683.5,2.40515]
[1739442678263,3.7488,2684.1,2683.5,0.5422]
[1739442678573,4.9216521,2684.1,2684.0,0.74504]
[1739442678777,0.7451,2683.9,2683.8,0.74507]
[1739442678969,0.7451,2683.9,2683.8,1.31167]
[1739442679670,0.7451,2683.9,2683.8,0.5666]
[1739442679972,0.7451,2683.9,2683.8,1.3117]
[1739442680978,0.7451,2683.9,2683.8,0.5666]
[1739442681174,0.74514,2683.8,2683.7,0.7451]
[1739442681376,5.61135,2684.1,2683.5,0.5864]
[1739442681575,5.61135,2684.1,2683.6,0.74513]
[1739442681576,0.74515,2683.7,2683.6,0.74513]
[1739442684878,0.74512,2683.8,2683.7,0.74509]
[1739442685268,0.74512,2683.8,2683.5,2.44935]
[1739442685269,2.29057695,2684.0,2683.5,0.5864]
[1739442685469,0.74515,2683.7,2683.6,0.74513]
[1739442685669,0.74515,2683.6,2683.5,1.33154]
[1739442686677,0.74515,2683.6,2683.5,0.5864]
[1739442687272,1.28755,2683.6,2683.5,0.5864]
[1739442687579,1.28755,2683.6,2683.5,1.33158]
[1739442688278,1.28755,2683.6,2683.5,0.5864]
[1739442688481,1.28755,2683.6,2683.5,1.33158]
[1739442688677,1.28755,2683.6,2683.5,0.5864]
[1739442688870,2.4053,2683.6,2683.3,0.56498264]
[1739442689074,0.74521,2683.4,2683.3,1.31022264]
[1739442690581,0.74521,2683.4,2683.3,0.00558264]
[1739442692481,1.17359079,2683.4,2683.3,0.00558264]
[1739442692678,1.23630532,2683.4,2683.3,0.00558264]
[1739442692881,1.23630265,2683.4,2683.3,0.00558264]
[1739442693283,0.74532,2683.0,2682.9,0.04195725]
[1739442693480,3.95312,2683.0,2682.9,0.04195725]
[1739442694585,0.74538,2682.8,2682.7,0.59558264]
[1739442694981,0.74538,2682.8,2682.7,0.00558264]
[1739442696281,1.28858,2682.8,2682.7,0.00558264]
[1739442701588,3.2078,2683.0,2682.7,0.00558264]
[1739442701790,0.74538,2682.8,2682.7,0.56428264]
[1739442701993,0.74538,2682.8,2682.7,0.00558264]
[1739442702388,1.33048,2682.8,2682.7,0.00558264]
[1739442702897,0.74557,2682.1,2682.0,3.2078]
[1739442703088,1.86359,2682.6,2681.9,0.7456]
[1739442703089,0.74562,2682.0,2681.9,0.7456]
[1739442703997,0.5851,2682.2,2681.8,0.5876]
[1739442703998,3.7929,2682.2,2681.8,0.5876]
[1739442704495,0.7455,2682.4,2682.3,0.7455]
[1739442704697,1.1544,2682.5,2681.9,5.82839217]
[1739442704893,0.74553,2682.3,2682.2,0.74552]
[1739442706691,0.74556,2682.2,2682.1,0.74554]
[1739442707488,0.74559,2682.1,2682.0,0.74558]
[1739442707794,0.74557,2682.2,2682.1,0.74556]
[1739442708195,1.7296,2682.5,2681.9,2.62059217]
[1739442708396,0.74555,2682.2,2682.1,0.74557]
[1739442709493,1.7296,2682.5,2681.9,2.62059217]
[1739442709691,3.2078,2682.6,2682.1,3.2078]
[1739442709994,3.95323,2682.6,2682.5,0.74546]
[1739442710395,3.2078,2682.6,2682.5,0.74546]
[1739442710597,3.95323,2682.6,2682.5,0.74546]
[1739442711908,3.2078,2682.6,2682.5,0.74546]
[1739442712093,3.95323,2682.6,2682.5,0.74546]
[1739442712699,3.2078,2682.6,2682.2,6.24615217]
[1739442712896,0.74548,2682.5,2682.4,0.74546]
[1739442714105,3.95326,2682.6,2682.5,0.74546]
[1739442714297,3.2078,2682.6,2682.5,0.74546]
[1739442715503,0.5564,2682.8,2682.3,1.86379]
[1739442715697,1.3018,2682.8,2682.7,0.7454]
[1739442716103,0.5677,2683.0,2682.4,3.2078]
[1739442716303,1.2861,2683.1,2683.0,0.74532]
[1739442716502,1.28611,2683.1,2683.0,0.74532]
[1739442716901,0.00558264,2683.2,2682.8,6.14142217]
[1739442717200,0.00558264,2683.2,2683.1,3.36588217]
[1739442719208,0.00558264,2683.2,2682.8,4.27799217]
[1739442719419,0.00558264,2683.2,2683.0,0.7453]
[1739442719703,0.74529,2683.1,2683.0,0.74529]
[1739442720002,0.74534,2683.0,2682.9,0.74534]
[1739442720208,0.00558264,2683.2,2682.8,4.27799217]
[1739442720606,0.74533,2683.0,2682.9,0.74533]
[1739442720803,0.00558264,2683.2,2682.8,4.27799217]
[1739442721007,0.74535,2682.9,2682.8,1.099]
[1739442721210,0.74535,2682.9,2682.8,0.5405]
[1739442721401,0.74538,2682.8,2682.7,3.9532]
[1739442721812,0.74538,2682.8,2682.7,4.5503]
[1739442722308,3.21338264,2683.2,2682.7,3.8049]
[1739442722507,0.74538,2682.8,2682.7,4.3748]
[1739442722713,0.74538,2682.8,2682.7,3.8049]
[1739442723007,3.2078,2682.9,2682.3,3.2078]
[1739442723309,0.74549,2682.4,2682.3,4.54201]
[1739442723512,0.74549,2682.4,2682.3,1.33421]
[1739442723709,2.44615,2682.8,2682.3,1.33421]
[1739442723900,0.5827,2682.8,2682.3,0.5887]
[1739442724102,0.5827,2682.8,2682.5,0.74544]
[1739442724610,0.7454,2682.7,2682.3,0.5887]
[1739442724807,3.2078,2682.9,2682.5,2.62059217]
[1739442725104,0.00558264,2683.2,2682.5,2.62059217]
[1739442725105,3.79608264,2683.2,2682.5,2.62059217]
[1739442725311,4.22428938,2683.2,2682.8,2.62059217]
[1739442725611,0.74531,2683.1,2683.0,0.74531]
[1739442725814,0.74532,2683.0,2682.9,1.1784]
[1739442726707,0.74532,2683.0,2682.9,0.5877]
[1739442726912,0.74548,2682.5,2682.4,0.74547]
[1739442727111,0.74548,2682.5,2682.4,1.33317]
[1739442727513,0.74548,2682.5,2682.4,0.5877]
[1739442728205,3.01478,2682.8,2682.2,6.57392217]
[1739442728410,3.01478,2682.8,2682.2,3.7643]
[1739442728411,0.74551,2682.3,2682.2,3.7643]
[1739442728814,0.74551,2682.3,2682.2,3.2078]
[1739442729302,0.74551,2682.3,2682.2,3.95334]
[1739442729507,0.5853,2682.4,2682.3,0.74551]
[1739442729707,0.74547,2682.5,2682.2,5.82839217]
[1739442730016,0.74547,2682.5,2682.4,0.74549]
[1739442730211,0.5828,2682.7,2682.2,5.82839217]
[1739442730407,0.5828,2682.7,2682.4,0.74547]
[1739442730607,0.74547,2682.5,2682.4,0.74547]
[1739442730910,0.74548,2682.5,2682.4,0.74549]
[1739442731805,0.5828,2682.7,2682.2,2.62059217]
[1739442732114,0.74547,2682.5,2682.4,0.74546]
[1739442732613,1.32821,2682.7,2682.6,0.74543]
[1739442733009,0.5828,2682.7,2682.2,2.62059217]
[1739442733206,2.44633,2682.7,2682.2,3.19359217]
[1739442733406,0.7455,2682.4,2682.3,0.74549]
[1739442733613,3.2078,2682.6,2682.5,0.74546]
[1739442735218,0.74549,2682.5,2682.4,0.74548]
[1739442735410,3.2078,2682.6,2682.2,5.82839217]
[1739442735716,3.95323,2682.6,2682.5,0.74546]
[1739442737015,0.74547,2682.5,2682.4,0.74546]
[1739442738511,0.5853,2682.8,2682.4,1.8637]
[1739442738718,3.21338264,2683.2,2682.8,0.74538]
[1739442739011,0.74531,2683.1,2682.9,0.5514]
[1739442739216,0.74531,2683.1,2683.0,0.7453]
[1739442739616,3.21338264,2683.2,2682.9,0.5514]
[1739442739818,0.74532,2683.0,2682.9,1.29672]
[1739442740114,0.74532,2683.0,2682.9,1.29675]
[1739442740316,0.74539,2682.8,2682.7,0.74538]
[1739442740515,4.9177,2682.9,2682.6,0.5896]
[1739442740810,0.7454,2682.7,2682.6,0.74543]
[1739442741818,4.9177,2682.9,2682.8,0.74538]
[1739442742117,5.66305,2682.9,2682.8,0.74538]
[1739442744217,3.21338264,2683.2,2682.8,2.62059217]
[1739442744412,0.00558264,2683.2,2683.1,0.74529]
[1739442745116,0.00558264,2683.2,2683.1,3.36588217]
[1739442745319,0.00558264,2683.2,2683.1,6.57368217]
[1739442746019,0.00558264,2683.2,2683.1,3.36588217]
[1739442749116,0.00558264,2683.2,2683.1,6.57368217]
[1739442751819,3.2078,2683.8,2683.7,0.74513]
[1739442752024,3.2078,2683.8,2683.3,1.86306]
[1739442752025,3.2078,2683.8,2683.6,0.74513]
[1739442752223,0.74513,2683.7,2683.6,0.74513]
[1739442752416,0.74513,2683.7,2683.6,1.28733]
[1739442753521,0.74518,2683.5,2683.4,0.75078315]
[1739442753720,0.74517,2683.6,2683.5,0.74516]
[1739442753922,0.74518,2683.5,2683.4,0.00559315]
[1739442754325,0.74518,2683.5,2683.4,0.75080315]
[1739442754724,1.90148,2683.5,2683.4,0.75080315]
[1739442754918,1.90148,2683.5,2683.4,0.00559315]
[1739442756528,7.72987217,2683.5,2683.4,0.00559315]
[1739442756825,0.74536,2682.9,2682.8,0.74536]
[1739442757522,0.74533,2683.0,2682.9,0.74533]
[1739442757817,0.74535,2683.0,2682.9,0.74535]
[1739442758431,0.74531,2683.1,2683.0,0.74532]
[1739442758626,0.74532,2683.0,2682.9,0.74533]
[1739442759132,0.74536,2682.9,2682.8,0.74535]
[1739442759523,0.74532,2683.1,2683.0,0.74531]
[1739442759827,0.74536,2682.9,2682.8,0.74536]
[1739442760427,0.7454,2682.8,2682.7,0.7454]
[1739442760623,3.2078,2683.1,2682.6,3.72459217]
[1739442760925,0.7454,2682.7,2682.6,4.47000217]
[1739442761629,0.7454,2682.7,2682.6,3.91240217]
[1739442761927,0.7454,2682.7,2682.6,1.29181]
[1739442762127,0.7454,2682.7,2682.6,0.5464]
[1739442762324,1.148,2683.0,2682.4,3.2078]
[1739442762530,0.74544,2682.6,2682.5,0.74544]
[1739442764031,3.01134,2683.0,2682.4,3.7591]
[1739442764232,0.74546,2682.6,2682.5,0.74545]
[1739442764627,3.01134,2683.0,2682.4,3.7591]
[1739442764932,0.74546,2682.6,2682.5,0.74546]
[1739442766932,0.74546,2682.5,2682.4,4.50456]
[1739442767631,0.5837,2682.8,2682.5,0.74544]
[1739442767632,0.74544,2682.6,2682.5,0.74544]
[1739442768131,0.74546,2682.5,2682.4,4.50456]
[1739442768634,0.74545,2682.6,2682.5,0.74544]
[1739442770039,0.74546,2682.5,2682.4,4.50456]
[1739442770339,0.74544,2682.6,2682.5,0.74543]
[1739442771436,0.74544,2682.6,2682.4,3.7591]
[1739442771639,0.74546,2682.5,2682.4,4.50456]
[1739442772234,3.7915,2682.8,2682.1,3.2078]
[1739442772440,0.74552,2682.3,2682.2,0.74552]
[1739442776544,1.32629,2682.4,2682.3,0.74551]
[1739442778043,0.5808,2682.4,2682.3,0.74551]
[1739442778247,1.32629,2682.4,2682.3,0.74551]
[1739442778745,0.74554,2682.3,2682.2,0.74553]
[1739442780158,1.32631,2682.4,2682.3,0.74551]
[1739442780443,0.5808,2682.4,2682.0,5.02507217]
[1739442780648,0.74555,2682.3,2682.2,0.74553]
[1739442781649,0.5808,2682.4,2682.0,3.16109217]
[1739442781850,0.74557,2682.2,2682.1,0.74555]
[1739442782239,0.74556,2682.2,2682.1,0.74554]
[1739442782642,0.74556,2682.2,2682.0,3.16109217]
[1739442782643,2.44454,2682.4,2682.0,0.5405]
[1739442782844,0.74557,2682.1,2682.0,0.5405]
[1739442783049,3.7547,2682.3,2682.2,0.74554]
[1739442783050,4.50024,2682.3,2682.2,0.74554]
[1739442783254,3.2078,2682.3,2682.0,0.5405]
[1739442783447,3.2078,2682.3,2682.2,0.74554]
[1739442783750,0.00559315,2682.5,2682.1,1.86392]
[1739442783943,0.00559315,2682.5,2682.4,0.74549]
[1739442784648,0.00559315,2682.5,2682.4,1.31869]
[1739442784848,0.00559315,2682.5,2682.2,0.5918]
[1739442785049,0.58119315,2682.5,2682.2,0.74553]
[1739442785248,0.58119315,2682.5,2682.1,0.5732]
[1739442785450,0.74549,2682.4,2682.3,0.74549]
[1739442785850,0.58119315,2682.5,2682.1,0.5732]
[1739442786051,0.564,2682.3,2682.1,0.5732]
[1739442786347,0.564,2682.3,2682.1,1.31875]
[1739442786548,0.43429211,2682.5,2682.1,0.5732]
[1739442786750,0.00559315,2682.5,2682.3,0.74551]
[1739442786954,0.7455,2682.4,2682.3,0.74551]
[1739442787248,0.00559315,2682.5,2682.1,0.5732]
[1739442787454,0.75106315,2682.5,2682.4,0.74549]
[1739442787850,0.00559315,2682.5,2682.4,0.74549]
[1739442788551,0.75105315,2682.5,2682.4,0.5707]
[1739442788855,0.00559315,2682.5,2682.3,3.36609217]
[1739442789050,0.75106315,2682.5,2682.3,3.36609217]
[1739442789250,0.00559315,2682.5,2682.4,0.74549]
[1739442789654,0.00559315,2682.5,2682.4,1.32699]
[1739442791959,0.00559315,2682.5,2682.4,0.74549]
[1739442792152,0.00559315,2682.5,2682.3,3.36609217]
[1739442792450,0.74549,2682.4,2682.3,3.36609217]
[1739442792856,0.75107315,2682.5,2682.3,3.36609217]
[1739442793155,0.74549,2682.4,2682.3,2.62059217]
[1739442793353,0.00559315,2682.5,2682.4,0.74549]
[1739442793657,0.74549,2682.4,2682.3,2.62059217]
[1739442793860,0.74549,2682.4,2682.3,3.36610217]
[1739442794051,0.00559315,2682.5,2682.3,3.36610217]
[1739442794252,0.74549,2682.4,2682.3,3.36610217]
[1739442795460,0.00559315,2682.5,2682.3,2.62059217]
[1739442795658,0.00559315,2682.5,2682.4,0.74549]
[1739442797357,0.75105315,2682.5,2682.4,0.74549]
[1739442797554,0.00559315,2682.5,2682.4,0.74549]
[1739442797957,0.75105315,2682.5,2682.4,0.74549]
[1739442799963,0.74549,2682.4,2682.3,3.36608217]
[1739442800154,0.75107315,2682.5,2682.4,0.74549]
[1739442800554,0.74549,2682.4,2682.3,3.36608217]
[1739442801158,0.00559315,2682.5,2682.3,2.62059217]
[1739442801554,0.75107315,2682.5,2682.4,0.74549]
[1739442802666,0.74549,2682.4,2682.3,3.36608217]
[1739442803066,0.74549,2682.4,2682.3,2.62059217]
[1739442803266,0.74551,2682.3,2682.2,0.74552]
[1739442804866,1.6334,2682.4,2682.1,0.5732]
[1739442805067,0.74554,2682.2,2682.1,1.31874]
[1739442805469,1.6334,2682.4,2682.1,0.5732]
[1739442805669,0.74553,2682.3,2682.2,0.74551]
[1739442805872,1.6334,2682.4,2682.1,0.5732]
[1739442806265,0.74554,2682.2,2682.1,1.31875]
[1739442807066,1.6334,2682.4,2682.1,0.5732]
[1739442807264,2.0626912,2682.4,2682.1,0.5732]
[1739442807462,0.74554,2682.2,2682.1,1.31874]
[1739442807662,0.74557,2682.1,2682.0,3.36618217]
[1739442808972,0.74556,2682.2,2682.1,0.74556]
[1739442809369,3.2078,2682.3,2682.0,2.62059217]
[1739442809672,3.2078,2682.3,2682.1,0.74555]
[1739442809673,0.74556,2682.2,2682.1,0.74555]
[1739442810170,0.74557,2682.1,2682.0,3.36618217]
[1739442810768,3.2078,2682.3,2682.0,3.36618217]
[1739442810769,3.2078,2682.3,2682.0,2.62059217]
[1739442810974,0.74557,2682.1,2682.0,3.36618217]
[1739442811473,0.74556,2682.2,2682.1,0.74555]
[1739442811773,0.74557,2682.1,2682.0,3.36617217]
[1739442812971,0.74557,2682.1,2682.0,3.36619217]
[1739442813167,3.2078,2682.3,2682.0,2.62059217]
[1739442813474,0.74556,2682.2,2682.1,0.74555]
[1739442814168,3.2078,2682.3,2682.0,2.62059217]
[1739442814364,0.74557,2682.2,2682.1,0.74555]
[1739442815475,3.2078,2682.3,2682.0,2.62059217]
[1739442815676,2.3789,2682.4,2682.3,0.74551]
[1739442815875,1.0866,2682.4,2682.3,0.74551]
[1739442816073,0.5424,2682.4,2682.3,0.74551]
[1739442816376,0.75105315,2682.5,2682.4,0.74549]
[1739442816676,1.18018664,2682.5,2682.4,0.74549]
[1739442816875,0.43472664,2682.5,2682.3,1.1696]
[1739442817071,0.74549,2682.4,2682.3,1.33121]
[1739442817868,0.74549,2682.4,2682.3,0.5857]
[1739442818770,0.43472664,2682.5,2682.3,0.5857]
[1739442818971,1.18021664,2682.5,2682.4,0.74549]
[1739442819175,0.74549,2682.4,2682.3,0.5857]
[1739442819378,0.74549,2682.4,2682.3,1.33121]
[1739442822582,0.43472664,2682.5,2682.3,0.5857]
[1739442822977,0.43472664,2682.5,2682.3,1.3312]
[1739442822978,0.74549,2682.4,2682.3,1.3312]
[1739442823979,0.74549,2682.4,2682.3,0.5857]
[1739442824279,0.74549,2682.4,2682.3,1.33121]
[1739442824774,0.43472664,2682.5,2682.3,0.5857]
[1739442825079,0.43472664,2682.5,2682.4,0.74549]
[1739442825278,0.43472664,2682.5,2682.4,1.34029]
[1739442825471,0.00559315,2682.5,2682.4,1.34029]
[1739442826580,0.75105315,2682.5,2682.4,1.34029]
[1739442827373,0.00559315,2682.5,2682.4,1.34029]
[1739442834285,0.75105315,2682.5,2682.4,1.34029]
[1739442834486,0.00559315,2682.5,2682.4,1.34029]
[1739442838489,3.2078,2683.3,2682.5,1.86361]
[1739442838789,0.74526,2683.2,2683.1,2.62059217]
[1739442839086,0.74532,2683.0,2682.9,0.74533]
[1739442839292,0.74532,2683.0,2682.9,1.32603]
[1739442839888,0.00559315,2683.2,2682.9,0.5807]
[1739442840090,0.7453,2683.1,2683.0,0.74531]
[1739442840291,0.00559315,2683.2,2682.9,0.5807]
[1739442840595,0.00559315,2683.2,2683.1,3.36588217]
[1739442841589,0.42835009,2683.7,2683.1,10.98888217]
[1739442841788,0.42835009,2683.7,2683.6,2.62059217]
[1739442841989,1.17348009,2683.7,2683.6,2.62059217]
[1739442842297,1.86433,2683.7,2683.6,2.62059217]
[1739442843997,3.2078,2683.8,2683.6,2.62059217]
[1739442844296,0.74513,2683.7,2683.6,2.62059217]
[1739442847009,3.2078,2683.8,2683.2,0.5634]
[1739442847196,3.2078,2683.8,2683.0,3.16279217]
[1739442847197,0.74529,2683.1,2683.0,3.16279217]
[1739442847497,0.74535,2682.9,2682.8,1.623]
[1739442847693,0.74538,2682.8,2682.7,2.62059217]
[1739442848097,0.74543,2682.6,2682.5,3.2078]
[1739442848303,0.74546,2682.5,2682.4,2.62059217]
[1739442848803,3.7681,2682.9,2682.4,2.62059217]
[1739442849004,0.74546,2682.5,2682.4,2.62059217]
[1739442849300,0.7454,2682.8,2682.4,2.62059217]
[1739442849499,3.7681,2682.9,2682.4,2.62059217]
[1739442849690,0.74546,2682.5,2682.4,2.62059217]
[1739442850202,0.5603,2682.9,2682.5,0.74544]
[1739442850396,0.5603,2682.9,2682.4,2.62059217]
[1739442850901,0.74546,2682.5,2682.4,2.62059217]
[1739442851304,0.5603,2682.9,2682.4,2.62059217]
[1739442851496,0.74546,2682.5,2682.4,2.62059217]
[1739442852007,3.2078,2682.7,2682.2,0.00559315]
[1739442852301,1.3338,2682.4,2682.2,0.00559315]
[1739442852501,0.5883,2682.4,2682.2,0.00559315]
[1739442852702,1.33381,2682.4,2682.2,0.00559315]
[1739442852890,0.74551,2682.3,2682.2,0.00559315]
[1739442853290,0.5883,2682.4,2682.2,0.00559315]
[1739442853291,1.33381,2682.4,2682.2,0.00559315]
[1739442853599,0.74551,2682.3,2682.2,0.00559315]
[1739442853795,0.5883,2682.4,2682.2,0.00559315]
[1739442854299,0.74551,2682.3,2682.2,0.00559315]
[1739442855102,1.30251,2682.3,2682.2,0.00559315]
[1739442865111,4.51031,2682.3,2682.2,0.00559315]
[1739442866006,6.13331,2682.3,2682.2,0.00559315]
[1739442870808,14.00839217,2682.3,2681.2,2.62059217]
[1739442871007,0.74588,2681.0,2680.8,1.6933]
[1739442871210,0.74589,2681.0,2680.9,0.7459]
[1739442871613,0.74589,2681.0,2680.9,0.74588]
[1739442872108,0.7459,2681.0,2680.9,0.7459]
[1739442872515,0.7459,2680.9,2680.8,1.1304]
[1739442872908,0.74589,2681.0,2680.9,0.74589]
[1739442873219,0.00559315,2681.1,2680.8,1.1304]
[1739442873403,0.74588,2681.0,2680.9,0.74589]
[1739442873608,0.75145315,2681.1,2681.0,0.74588]
[1739442873809,0.00559315,2681.1,2680.9,0.74588]
[1739442874010,0.74588,2681.0,2680.9,0.74588]
[1739442874210,0.00559315,2681.1,2680.8,1.1304]
[1739442874412,0.00559315,2681.1,2681.0,0.74588]
[1739442874609,0.74589,2681.0,2680.9,0.7459]
[1739442875014,0.00559315,2681.1,2680.8,1.1304]
[1739442875514,0.7459,2680.9,2680.8,1.1304]
[1739442876417,0.00559315,2681.1,2680.8,1.1304]
[1739442876614,0.00559315,2681.1,2681.0,0.74588]
[1739442877022,0.00559315,2681.1,2680.9,2.62059217]
[1739442877217,0.75144315,2681.1,2681.0,0.5656]
[1739442877813,0.75144315,2681.1,2681.0,1.31148]
[1739442878119,0.75144315,2681.1,2681.0,0.5656]
[1739442878309,0.75144315,2681.1,2681.0,1.31148]
[1739442878712,0.75144315,2681.1,2681.0,0.5656]
[1739442879713,0.00559315,2681.1,2680.8,1.87631]
[1739442879917,0.7459,2680.9,2680.8,1.1304]
[1739442881826,0.7459,2680.9,2680.8,1.87633]
[1739442882223,0.00559315,2681.1,2680.8,1.1304]
[1739442882422,0.7459,2680.9,2680.8,1.87631]
[1739442882626,0.7459,2680.9,2680.8,1.1304]
[1739442883326,0.7459,2680.9,2680.8,1.87633]
[1739442883719,0.7459,2680.9,2680.8,1.1304]
[1739442883919,0.7459,2680.9,2680.8,1.87633]
[1739442885327,0.7459,2680.9,2680.8,1.1304]
[1739442885622,0.7459,2680.9,2680.8,1.87633]
[1739442885822,0.7459,2680.9,2680.8,1.1304]
[1739442887828,3.2078,2680.9,2680.7,0.00559315]
[1739442888028,0.74593,2680.8,2680.7,0.00559315]
[1739442888227,1.90223,2680.8,2680.7,0.00559315]
[1739442892828,0.74593,2680.8,2680.7,0.75155315]
[1739442893125,3.95372,2680.9,2680.8,0.74593]
[1739442893320,3.2078,2680.9,2680.7,0.00559315]
[1739442893628,3.95371,2680.9,2680.8,0.74593]
[1739442893927,3.95371,2680.9,2680.8,1.30063]
[1739442894327,3.9537,2680.9,2680.8,2.41903]
[1739442895329,3.2078,2680.9,2680.8,2.41903]
[1739442895524,3.9537,2680.9,2680.8,2.41903]
[1739442897127,2.75979315,2681.1,2680.8,1.6731]
[1739442897128,0.58179315,2681.1,2680.8,1.6731]
[1739442897323,0.00559315,2681.1,2681.0,0.74588]
[1739442897722,0.75144315,2681.1,2681.0,0.74588]
[1739442898531,0.00559315,2681.1,2681.0,0.74588]
[1739442899028,0.00559315,2681.1,2681.0,3.95368]
[1739442902733,0.00559315,2681.1,2681.0,0.74588]
[1739442902929,0.00559315,2681.1,2680.8,1.6731]
[1739442903137,0.7459,2680.9,2680.8,1.87551]
[1739442903329,0.00559315,2681.1,2680.9,0.7459]
[1739442903330,0.7459,2681.0,2680.9,0.7459]
[1739442903530,0.75145315,2681.1,2681.0,0.74588]
[1739442903930,0.00559315,2681.1,2680.8,1.1296]
[1739442904127,0.7459,2680.9,2680.8,1.87552]
[1739442904427,0.74588,2681.0,2680.9,0.74589]
[1739442905033,0.7459,2680.9,2680.8,1.87552]
[1739442905430,1.29415315,2681.1,2680.8,1.1296]
[1739442905628,1.29415315,2681.1,2681.0,0.74588]
[1739442905934,1.29416315,2681.1,2681.0,0.74588]
[1739442906140,0.54829315,2681.1,2680.8,1.1296]
[1739442906434,0.54829315,2681.1,2681.0,0.74588]
[1739442906630,0.00559315,2681.1,2681.0,0.74588]
[1739442906832,0.74588,2681.0,2680.9,0.74589]
[1739442907024,0.00559315,2681.1,2680.8,1.1296]
[1739442907232,0.7459,2680.9,2680.8,1.87552]
[1739442907433,0.00559315,2681.1,2680.8,1.1296]
[1739442907628,0.7459,2680.9,2680.8,1.1296]
[1739442907829,0.7459,2680.9,2680.8,1.87553]
[1739442908027,0.7459,2680.9,2680.8,1.30063]
[1739442908229,0.74593,2680.9,2680.8,0.74593]
[1739442908434,0.74593,2680.8,2680.7,0.00559315]
[1739442908634,0.5838,2680.8,2680.7,0.75155315]
[1739442909540,0.74591,2680.9,2680.8,0.74591]
[1739442909734,0.5822,2681.0,2680.7,0.00559315]
[1739442909942,0.58939315,2681.1,2680.7,0.00559315]
[1739442910238,0.74588,2681.0,2680.9,0.74589]
[1739442910828,0.58939315,2681.1,2680.9,0.5748]
[1739442911039,0.74588,2681.0,2680.9,1.32069]
[1739442911240,0.74588,2681.0,2680.9,0.5748]
[1739442911742,1.33828,2681.0,2680.9,0.5748]
[1739442911932,0.5924,2681.0,2680.7,0.75154315]
[1739442912131,0.74593,2680.8,2680.7,0.00559315]
[1739442912338,0.74593,2680.8,2680.7,0.75155315]
[1739442913039,0.74593,2680.8,2680.7,0.00559315]
[1739442913244,0.74593,2680.8,2680.7,0.75155315]
[1739442913544,0.74593,2680.9,2680.8,0.7459]
[1739442913839,0.74593,2680.8,2680.7,0.75153315]
[1739442914041,0.5924,2681.0,2680.7,0.00559315]
[1739442914348,0.74593,2680.8,2680.7,0.75154315]
[1739442915140,0.74593,2680.8,2680.2,2.996]
[1739442915141,0.74668,2678.1,2678.0,3.2078]
[1739442915338,3.2078,2678.9,2678.2,1.1142]
[1739442915534,3.2078,2678.9,2678.6,2.62059217]
[1739442915735,3.2078,2678.9,2678.8,2.99599538]
[1739442915943,3.2078,2679.2,2678.8,2.99599538]
[1739442916144,3.9542,2679.2,2679.1,2.99599538]
[1739442921147,3.95418,2679.2,2679.1,2.99599538]
[1739442921441,3.95418,2679.2,2679.1,43.79599538]
[1739442922445,3.95418,2679.2,2679.1,2.99599538]
[1739442925147,3.2078,2679.2,2679.1,2.99599538]
[1739442925346,9.2078,2679.2,2677.7,4.68]
[1739442925548,0.74666,2678.2,2678.1,1.1577]
[1739442925845,0.74666,2678.2,2678.1,41.9577]
[1739442926151,0.74666,2678.2,2678.1,44.12518538]
[1739442926353,0.74664,2678.3,2678.1,44.87185538]
[1739442926646,3.9544,2678.4,2678.3,2.16748538]
[1739442927744,8.05549,2679.9,2679.0,0.74643]
[1739442927745,3.2078,2679.1,2679.0,0.74643]
[1739442928044,0.00559315,2679.3,2679.2,0.74638]
[1739442928238,0.00559315,2679.3,2679.1,0.5594]
[1739442928438,0.75196315,2679.3,2679.2,40.8]
[1739442929249,0.75196315,2679.3,2678.7,3.2078]
[1739442929250,0.74649,2678.8,2678.7,3.2078]
[1739442929450,0.74649,2678.8,2678.7,3.774]
[1739442929646,0.74649,2678.8,2678.7,44.574]
[1739442929948,0.74648,2678.9,2678.7,45.3205]
[1739442930137,2.62059217,2679.2,2678.7,45.3205]
[1739442930443,0.74646,2679.0,2678.8,0.74649]
[1739442930653,0.00559315,2679.3,2678.7,44.574]
[1739442930947,0.74646,2678.9,2678.8,1.1374]
[1739442931148,0.00559315,2679.3,2678.8,1.1374]
[1739442931149,0.00559315,2679.3,2678.8,1.88388]
[1739442931349,0.74646,2678.9,2678.8,1.88388]
[1739442931550,0.74646,2679.0,2678.8,1.88388]
[1739442931746,0.00559315,2679.3,2678.8,1.1374]
[1739442932052,0.74646,2678.9,2678.8,1.1374]
[1739442932249,2.62059217,2678.9,2678.1,3.2078]
[1739442932551,5.07389,2679.0,2678.4,3.2078]
[1739442932740,0.74656,2678.6,2678.5,40.8]
[1739442937254,0.74666,2678.2,2678.1,4.9114]